bitfinex/quotes_ETHUSD_20240722
["timestamp","ask_amount","ask_price","bid_price","bid_amount"]
[1721662643790,0.0551583,3464.9,3464.8,9.428552]
[1721662643942,0.1490996,3466.2,3466.1,2.88508]
[1721662644143,0.1490996,3466.2,3466.1,5.77016]
[1721662644384,0.1490996,3466.2,3466.1,6.32016]
[1721662647079,0.1490996,3466.2,3466.1,6.952176]
[1721662647643,0.1490996,3466.2,3466.1,4.067096]
[1721662647942,0.1490996,3466.2,3466.1,3.43508]
[1721662648590,0.1490996,3466.2,3465.9,2.88522]
[1721662648743,0.1490996,3466.2,3466.0,3.4351]
[1721662649346,0.1490996,3466.2,3465.5,3.0]
[1721662649347,0.1490996,3466.2,3465.7,2.88535]
[1721662649586,0.1490996,3466.2,3465.8,6.43529]
[1721662649891,0.1490996,3466.2,3465.9,2.88525]
[1721662650383,0.1490996,3466.2,3466.0,1.193525]
[1721662650544,0.1490996,3466.2,3465.8,6.43526]
[1721662650750,0.1490996,3466.2,3466.0,2.8851]
[1721662651061,0.1490996,3466.2,3466.1,2.88508]
[1721662651385,0.1490996,3466.2,3466.0,2.88516]
[1721662651630,0.1490996,3466.2,3465.8,9.32054]
[1721662651741,0.1490996,3466.2,3465.9,2.88524]
[1721662651946,0.1490996,3466.2,3465.8,3.55]
[1721662652161,0.1490996,3466.2,3465.9,2.8852]
[1721662652446,0.1490996,3466.2,3465.9,2.88519]
[1721662652787,0.1490996,3466.2,3465.9,2.88517]
[1721662652946,0.1490996,3466.2,3465.0,2.88598]
[1721662653147,2.88525,3466.0,3465.3,2.88572]
[1721662653453,2.88529,3465.9,3465.2,2.88578]
[1721662653689,2.88529,3465.9,3465.4,2.88566]
[1721662653843,2.88529,3465.9,3465.3,5.77141]
[1721662654047,2.88529,3465.9,3465.3,2.88569]
[1721662654254,2.88512,3466.1,3465.3,2.88569]
[1721662654487,2.88512,3466.1,3465.5,2.88557]
[1721662654488,2.88509,3466.1,3465.5,2.88557]
[1721662654871,0.1490996,3466.2,3465.1,5.77172]
[1721662654872,2.88534,3465.8,3465.1,5.77172]
[1721662655068,2.88534,3465.8,3465.2,0.55]
[1721662655257,2.88555,3465.6,3464.9,2.88602]
[1721662655455,2.88575,3465.3,3465.0,3.0]
[1721662655683,2.88575,3465.3,3464.8,3.0]
[1721662655991,2.88584,3465.2,3464.8,3.0]
[1721662656160,2.3177,3465.7,3464.5,2.88636]
[1721662656161,2.88597,3465.1,3464.5,2.88636]
[1721662656368,2.88597,3465.1,3464.4,2.88648]
[1721662656369,2.88607,3465.0,3464.4,2.88648]
[1721662656580,2.88607,3465.0,3464.5,2.8864]
[1721662656791,2.88606,3465.0,3464.4,3.463794]
[1721662656991,5.77214,3465.0,3464.4,3.463794]
[1721662657185,2.88606,3465.0,3464.5,2.88641]
[1721662657369,5.20314,3465.7,3464.4,3.463744]
[1721662657370,2.8857,3465.4,3464.6,2.88628]
[1721662657583,2.8858,3465.3,3464.7,2.8862]
[1721662657787,2.3177,3465.7,3464.9,2.88607]
[1721662657995,2.87105227,3466.7,3465.5,2.88556]
[1721662658313,2.87105227,3466.7,3465.0,5.4204]
[1721662658314,2.88495,3466.3,3465.2,2.452]
[1721662658520,2.88495,3466.3,3465.5,2.88556]
[1721662658688,2.88495,3466.3,3465.6,5.88545]
[1721662658873,2.88496,3466.3,3465.7,2.8854]
[1721662659258,2.268,3466.7,3465.6,3.0]
[1721662659259,2.88515,3466.1,3465.6,3.0]
[1721662659530,2.88515,3466.1,3465.5,2.88557]
[1721662659699,2.88515,3466.1,3464.5,2.6866]
[1721662659700,2.88538,3465.8,3464.5,2.6866]
[1721662659904,2.88538,3465.8,3465.1,2.88585]
[1721662659905,2.4031,3465.8,3465.1,2.88585]
[1721662660105,2.88554,3465.6,3465.2,3.55]
[1721662660290,2.88554,3465.6,3465.2,0.55]
[1721662660650,2.88559,3465.5,3464.9,2.88602]
[1721662660795,2.88559,3465.5,3465.0,3.55]
[1721662661699,2.88543,3465.7,3465.0,6.43594]
[1721662661900,5.28848,3465.8,3465.2,2.8858]
[1721662662240,5.28848,3465.8,3465.1,2.88584]
[1721662662420,5.28848,3465.8,3465.2,0.55]
[1721662662839,2.88543,3465.7,3465.2,0.55]
[1721662662999,2.88543,3465.7,3465.2,3.43583]
[1721662663195,2.4031,3465.8,3465.0,5.88594]
[1721662663400,2.8857,3465.4,3464.8,2.88611]
[1721662663651,2.88561,3465.5,3464.9,6.43601]
[1721662663800,2.88547,3465.7,3465.0,2.88596]
[1721662663998,2.4031,3465.8,3464.9,3.55]
[1721662664238,2.88565,3465.5,3464.9,0.55]
[1721662664450,2.4031,3465.8,3465.0,2.88599]
[1721662664654,2.88555,3465.6,3465.0,2.88599]
[1721662664943,2.4031,3465.8,3465.0,2.88599]
[1721662664944,2.4031,3465.8,3465.0,3.529589]
[1721662665113,2.88558,3465.6,3465.0,3.529589]
[1721662665456,2.88559,3465.5,3465.0,3.529589]
[1721662665641,2.88559,3465.5,3465.0,0.643599]
[1721662665851,2.88559,3465.5,3464.9,0.55]
[1721662666008,2.88571,3465.4,3464.9,0.55]
[1721662666206,2.4031,3465.8,3464.6,0.3463584]
[1721662666207,2.88552,3465.6,3464.6,0.3463584]
[1721662666405,2.88552,3465.6,3464.5,2.8864]
[1721662666406,2.886,3465.0,3464.5,2.8864]
[1721662666773,2.886,3465.0,3464.4,0.577304]
[1721662666941,2.8859,3465.2,3464.6,2.88633]
[1721662667335,5.7718,3465.2,3464.6,2.88633]
[1721662667670,2.88592,3465.1,3464.6,2.88633]
[1721662670147,5.77158,3465.3,3464.6,5.77261]
[1721662670359,2.8856,3465.5,3464.7,2.88619]
[1721662670564,2.88579,3465.3,3464.7,5.77239]
[1721662670734,2.88579,3465.3,3464.8,2.88615]
[1721662671555,2.88584,3465.2,3464.6,3.5213214]
[1721662671762,2.88594,3465.1,3464.7,0.55]
[1721662672146,2.88579,3465.3,3464.7,0.55]
[1721662672349,2.88579,3465.3,3464.8,0.40712614]
[1721662672560,2.88579,3465.3,3464.8,3.29328614]
[1721662672832,2.88567,3465.4,3464.8,0.40712614]
[1721662673034,2.88567,3465.4,3464.9,2.88604]
[1721662673431,5.77141,3465.4,3464.9,2.88604]
[1721662673635,2.88576,3465.3,3464.8,2.88616]
[1721662674465,10.20542,3465.7,3464.7,0.55]
[1721662674648,3.48822227,3466.0,3465.3,2.88569]
[1721662674854,0.60305227,3466.1,3465.3,0.577155]
[1721662675038,2.88517,3466.0,3465.5,2.88554]
[1721662675666,2.88509,3466.1,3465.5,2.88554]
[1721662675980,5.82720227,3466.2,3465.6,2.88548]
[1721662676150,8.71227227,3466.2,3465.6,2.88548]
[1721662676479,2.88539,3465.8,3465.2,2.88583]
[1721662676674,2.88547,3465.7,3465.3,3.0]
[1721662677451,2.88564,3465.5,3464.9,5.88605]
[1721662677785,2.88564,3465.5,3465.0,3.43599]
[1721662677970,2.88564,3465.5,3465.1,3.0]
[1721662679091,2.88564,3465.5,3465.0,0.55]
[1721662679092,2.88558,3465.5,3465.0,0.55]
[1721662680072,2.88575,3465.3,3464.9,3.85601671]
[1721662680240,2.88575,3465.3,3464.7,5.88619]
[1721662680442,2.88564,3465.5,3464.8,0.55]
[1721662680637,0.90459659,3465.9,3464.8,0.55]
[1721662680638,2.8855,3465.6,3465.1,2.88587]
[1721662680837,2.8855,3465.6,3464.8,3.43611]
[1721662680838,2.8858,3465.3,3464.8,0.55]
[1721662681072,2.8858,3465.3,3464.8,6.43612]
[1721662681248,2.88548,3465.7,3465.2,2.88579]
[1721662681905,2.303,3465.9,3465.4,2.88566]
[1721662681906,2.88531,3465.9,3465.4,2.88566]
[1721662682314,0.60305227,3466.0,3465.4,2.88561]
[1721662682315,3.48823227,3466.0,3465.4,2.88561]
[1721662682603,0.60305227,3466.0,3464.9,2.88606]
[1721662682815,0.60305227,3466.0,3465.4,2.88565]
[1721662683104,0.60305227,3466.5,3465.7,2.88535]
[1721662683306,0.90459659,3466.6,3465.5,3.288565]
[1721662683307,2.88512,3466.1,3465.5,3.288565]
[1721662683514,3.48794227,3466.4,3465.6,3.4355]
[1721662683658,2.88503,3466.2,3465.6,4.3964175]
[1721662683861,2.88522,3466.0,3465.6,1.5109675]
[1721662684379,2.88522,3466.0,3465.1,2.284]
[1721662684380,2.88522,3466.0,3465.4,2.88565]
[1721662684592,2.88529,3465.9,3465.4,2.88565]
[1721662684779,2.88529,3465.9,3465.3,3.0]
[1721662684990,0.60305227,3466.0,3465.4,0.55]
[1721662685315,0.60305227,3466.1,3465.5,2.88552]
[1721662685626,3.48814227,3466.1,3465.6,2.88546]
[1721662685813,0.60305227,3466.1,3465.6,2.88544]
[1721662686018,0.60305227,3466.2,3465.8,2.88529]
[1721662686397,0.60305227,3466.3,3465.8,2.88529]
[1721662686595,3.48802227,3466.3,3465.6,5.77088]
[1721662686930,0.60305227,3466.2,3465.4,0.55]
[1721662687152,2.88518,3466.0,3465.5,2.88556]
[1721662687644,2.88518,3466.0,3465.3,3.43568]
[1721662687789,2.88518,3466.0,3465.4,5.88561]
[1721662687990,3.48810227,3466.2,3465.5,2.88557]
[1721662688294,3.48806227,3466.2,3465.5,0.932125]
[1721662688525,0.60305227,3466.4,3465.8,2.88529]
[1721662688732,0.60305227,3466.4,3466.0,2.88516]
[1721662689035,2.88471,3466.6,3465.6,0.55]
[1721662689036,0.60305227,3466.6,3466.2,2.88495]
[1721662689224,4.08601068,3466.9,3466.2,2.88495]
[1721662689225,0.60305227,3466.7,3466.2,2.88495]
[1721662689428,0.60305227,3466.7,3466.2,2.88494]
[1721662689748,0.60305227,3466.7,3466.2,0.4520335]
[1721662689913,3.48750227,3466.9,3466.0,2.88512]
[1721662690107,3.48750227,3466.9,3466.2,2.88495]
[1721662690108,2.88463,3466.7,3466.2,2.88495]
[1721662690320,2.88463,3466.7,3466.1,2.88508]
[1721662690504,2.88472,3466.6,3466.0,2.88511]
[1721662690721,2.88459,3466.7,3466.1,2.88504]
[1721662690892,2.88459,3466.7,3466.2,2.885]
[1721662691734,0.60305227,3466.8,3466.2,2.88493]
[1721662692034,3.48756227,3466.8,3466.2,2.88495]
[1721662692194,7.32,3467.4,3466.7,2.88458]
[1721662692195,0.60305227,3467.2,3466.7,2.88458]
[1721662692394,7.92305227,3467.4,3466.8,2.88444]
[1721662692628,7.92305227,3467.4,3466.7,2.88455]
[1721662692629,2.88401,3467.4,3466.7,2.88455]
[1721662692835,2.88401,3467.4,3466.9,2.88437]
[1721662693036,0.60305227,3467.4,3466.9,2.8844]
[1721662693197,3.48699227,3467.5,3466.9,2.88436]
[1721662693398,1.68203322,3467.5,3466.4,2.94249638]
[1721662693594,0.60305227,3467.5,3466.5,3.55]
[1721662693839,3.48697227,3467.5,3467.0,2.88431]
[1721662694131,3.48697227,3467.5,3467.0,2.88427]
[1721662694132,0.60305227,3467.5,3467.0,2.88427]
[1721662694334,0.60305227,3467.6,3467.1,0.55]
[1721662694535,5.74509068,3468.0,3467.4,2.88394]
[1721662694536,0.60305227,3467.9,3467.4,2.88394]
[1721662694763,3.48668227,3467.9,3467.3,2.88403]
[1721662694919,4.54355,3468.0,3467.3,2.88403]
[1721662694920,0.60305227,3467.8,3467.3,2.88403]
[1721662695100,5.44814659,3468.0,3467.3,2.88403]
[1721662695101,0.60305227,3467.9,3467.4,2.88396]
[1721662695438,5.14657227,3468.0,3467.4,2.884]
[1721662695735,5.14657227,3468.0,3467.0,0.55]
[1721662695736,0.60305227,3467.9,3467.6,2.88383]
[1721662695900,1.66,3468.0,3467.6,2.88383]
[1721662696098,1.66,3468.0,3467.0,3.43431]
[1721662696099,1.66,3468.0,3467.0,0.55]
[1721662696353,1.66,3468.0,3467.6,2.88377]
[1721662696512,1.66,3468.0,3467.8,2.88366]
[1721662696715,1.66,3468.0,3467.9,2.88358]
[1721662696936,1.66,3468.0,3467.9,3.43358]
[1721662697350,1.66,3468.0,3467.9,6.31716]
[1721662697547,1.66,3468.0,3467.9,3.43358]
[1721662698215,1.66,3468.0,3467.9,6.31716]
[1721662698468,1.66,3468.0,3467.9,6.948876]
[1721662699726,1.66,3468.0,3467.9,9.832456]
[1721662699932,1.66,3468.0,3467.9,6.948876]
[1721662700424,0.1490996,3469.6,3468.0,0.9219376]
[1721662700629,0.1490996,3469.6,3469.5,2.88225]
[1721662700812,0.1490996,3469.6,3469.4,2.88233]
[1721662700813,0.1490996,3469.6,3469.4,2.88227]
[1721662701011,0.1490996,3469.6,3468.9,2.88271]
[1721662701012,0.1490996,3469.6,3469.5,2.88225]
[1721662701214,0.1490996,3469.6,3468.8,2.88278]
[1721662701457,0.1490996,3469.6,3469.4,2.8823]
[1721662701660,0.1490996,3469.6,3469.5,3.43225]
[1721662701820,0.1490996,3469.6,3469.5,6.3145]
[1721662702386,0.1490996,3469.6,3469.4,0.28823]
[1721662702591,0.1490996,3469.6,3469.3,2.8824]
[1721662702735,0.1490996,3469.6,3469.1,2.88255]
[1721662702941,0.1490996,3469.6,3469.5,5.7645]
[1721662703142,0.1490996,3469.6,3469.5,3.43225]
[1721662703395,0.1490996,3469.6,3469.5,0.55]
[1721662703684,0.1490996,3469.6,3469.3,2.88238]
[1721662703870,0.1490996,3469.6,3469.1,2.88255]
[1721662704178,0.1490996,3469.6,3468.5,2.88304]
[1721662704179,2.88242,3469.4,3468.5,2.88304]
[1721662704479,2.88259,3469.1,3468.6,0.288304]
[1721662704678,2.3274,3469.4,3468.4,2.88315]
[1721662704679,2.88269,3469.0,3468.4,2.88315]
[1721662704982,2.88259,3469.1,3468.4,2.88315]
[1721662705185,2.88267,3469.0,3468.4,2.88315]
[1721662705393,5.20981,3469.4,3468.7,2.88286]
[1721662705546,2.8825,3469.3,3468.5,2.88305]
[1721662705864,2.3274,3469.4,3468.7,2.88286]
[1721662706067,2.86327596,3469.4,3468.3,2.88321]
[1721662706268,2.88266,3469.1,3468.3,2.88322]
[1721662706504,2.88268,3469.0,3468.3,2.88318]
[1721662706782,2.86327596,3469.4,3467.6,2.2863]
[1721662706991,2.8829,3468.8,3467.6,2.2863]
[1721662707151,2.88269,3469.0,3468.2,2.8833]
[1721662707352,2.8828,3468.9,3468.3,2.88325]
[1721662707654,2.88251,3469.2,3468.6,2.88296]
[1721662707858,2.88259,3469.1,3468.4,5.76621]
[1721662708058,2.88247,3469.3,3468.5,0.55]
[1721662708361,5.74567596,3469.4,3468.5,0.55]
[1721662708362,2.88251,3469.2,3468.5,0.55]
[1721662708565,0.5745786,3469.2,3468.1,2.88342]
[1721662708872,5.76591,3468.7,3467.9,2.88357]
[1721662709191,5.76591,3468.7,3467.7,6.400699]
[1721662709192,2.88289,3468.8,3468.1,2.88337]
[1721662709400,2.88289,3468.8,3468.2,3.43332]
[1721662709626,5.20977,3469.4,3468.4,2.88309]
[1721662709826,2.88247,3469.3,3468.6,2.88293]
[1721662709988,5.20977,3469.4,3468.7,2.88287]
[1721662710190,3.0312796,3469.6,3468.5,0.343309]
[1721662710191,0.1490996,3469.6,3469.0,2.88266]
[1721662710394,3.0313196,3469.6,3469.0,2.88266]
[1721662710720,2.88226,3469.5,3469.0,2.88266]
[1721662711069,2.88226,3469.5,3468.5,0.343309]
[1721662711070,0.1490996,3469.6,3469.1,3.43258]
[1721662711420,3.0312796,3469.6,3469.1,0.55]
[1721662711588,0.1490996,3469.6,3469.1,0.55]
[1721662712119,0.1490996,3469.6,3469.1,3.43258]
[1721662712411,0.1490996,3469.6,3469.1,0.89326]
[1721662712816,0.1490996,3469.6,3469.1,3.77584]
[1721662713110,0.1490996,3469.6,3469.2,2.8825]
[1721662713321,0.1490996,3469.6,3469.4,2.88231]
[1721662713532,0.1490996,3469.6,3469.5,0.29399528]
[1721662713828,2.88227,3469.5,3469.1,0.55]
[1721662714043,2.88227,3469.5,3468.3,2.88323]
[1721662714044,3.0313296,3469.6,3469.0,0.55]
[1721662714317,2.88209,3469.7,3469.1,0.343275]
[1721662714539,3.0496275,3469.6,3469.1,3.0]
[1721662714676,2.88226,3469.5,3468.9,6.4327]
[1721662714877,2.88226,3469.5,3468.9,3.55]
[1721662715104,2.88226,3469.5,3468.9,0.55]
[1721662715310,0.06530945,3469.4,3468.5,0.343309]
[1721662715519,2.8828,3468.9,3468.1,2.88336]
[1721662715716,0.06530945,3469.4,3468.1,2.88336]
[1721662715717,2.88288,3468.8,3468.1,2.88336]
[1721662715936,2.88288,3468.8,3467.6,2.88375]
[1721662715937,2.88313,3468.5,3467.8,2.88362]
[1721662716224,2.88313,3468.5,3467.9,0.576741]
[1721662716428,2.9014879,3468.5,3467.9,3.460321]
[1721662716581,0.0183579,3468.5,3467.2,2.88413]
[1721662716921,2.88318,3468.4,3467.8,2.88362]
[1721662717443,2.88326,3468.3,3467.6,2.88376]
[1721662717643,0.0183579,3468.4,3467.8,2.88366]
[1721662717845,0.0183579,3468.4,3467.7,2.88374]
[1721662717846,2.88326,3468.3,3467.7,2.88374]
[1721662718044,0.0183579,3468.4,3467.9,2.88353]
[1721662718348,0.0183579,3468.4,3468.1,2.88337]
[1721662718553,0.0183579,3468.4,3467.6,2.8838]
[1721662718723,0.0183579,3468.4,3468.3,2.88325]
[1721662719049,0.0183579,3468.4,3468.3,0.55]
[1721662719345,0.0183579,3468.4,3468.3,1.18168]
[1721662719559,0.0183579,3468.4,3468.3,6.94818]
[1721662719712,0.0183579,3468.4,3468.3,4.06493]
[1721662720150,0.0183579,3468.4,3468.3,6.94818]
[1721662720510,1e-08,3468.4,3468.3,4.06493]
[1721662720754,1e-08,3468.4,3468.3,1.18168]
[1721662720917,1e-08,3468.4,3468.3,0.55]
[1721662721117,1e-08,3468.4,3468.1,6.43336]
[1721662721319,1e-08,3468.4,3468.3,2.88325]
[1721662721537,1e-08,3468.4,3468.3,3.43325]
[1721662721710,1e-08,3468.4,3468.3,0.55]
[1721662721911,1e-08,3468.4,3468.3,0.343346]
[1721662722132,1e-08,3468.4,3468.3,3.776596]
[1721662723247,1e-08,3468.4,3468.3,0.343346]
[1721662723448,1e-08,3468.4,3468.1,5.88336]
[1721662723661,1e-08,3468.4,3468.2,3.43332]
[1721662723865,1e-08,3468.4,3468.2,0.55]
[1721662724192,1e-08,3468.4,3468.3,2.88325]
[1721662724675,1e-08,3468.4,3468.3,3.43325]
[1721662724973,1e-08,3468.4,3468.3,1.536665]
[1721662725276,1e-08,3468.4,3468.3,4.419915]
[1721662725575,1e-08,3468.4,3468.3,1.536665]
[1721662725784,1e-08,3468.4,3468.3,4.419915]
[1721662725991,1e-08,3468.4,3468.3,1.536665]
[1721662726436,1e-08,3468.4,3468.3,0.55]
[1721662726647,1e-08,3468.4,3468.3,2.88325]
[1721662726974,1e-08,3468.4,3468.3,9.3165]
[1721662728577,1e-08,3468.4,3468.3,3.55]
[1721662728790,1e-08,3468.4,3468.3,3.43325]
[1721662728983,1e-08,3468.4,3468.3,7.364919]
[1721662729588,1e-08,3468.4,3468.3,4.481669]
[1721662730255,1e-08,3468.4,3468.3,1.481669]
[1721662731697,1e-08,3468.4,3468.3,0.931669]
[1721662731985,1e-08,3468.4,3468.0,3.0]
[1721662732215,1e-08,3468.4,3468.1,0.55]
[1721662732216,2.88318001,3468.4,3468.1,0.55]
[1721662732587,2.8833,3468.3,3468.0,0.55]
[1721662732907,2.88321001,3468.4,3467.9,0.55]
[1721662733215,2.88321001,3468.4,3467.8,3.55]
[1721662733428,2.88321001,3468.4,3467.9,0.643367]
[1721662733574,2.88321001,3468.4,3468.0,0.55]
[1721662733928,2.88321001,3468.4,3467.9,0.643367]
[1721662733929,2.88363,3467.9,3467.1,2.8842]
[1721662734087,2.88319001,3468.4,3467.2,2.88416]
[1721662734414,2.8835,3468.0,3467.3,2.88407]
[1721662734583,2.8835,3468.0,3467.0,2.452]
[1721662734584,2.8838,3467.7,3467.4,0.288407]
[1721662734929,2.88367,3467.8,3467.3,2.88408]
[1721662735293,2.88367,3467.8,3467.4,3.0]
[1721662735599,2.88367,3467.8,3466.7,2.88456]
[1721662735600,2.88406,3467.4,3466.8,2.88445]
[1721662735909,2.88409,3467.3,3466.7,2.88458]
[1721662736285,2.88409,3467.3,3466.8,2.8845]
[1721662736486,2.88409,3467.3,3466.9,0.28845]
[1721662736869,2.88429,3467.1,3466.9,0.28845]
[1721662737073,2.88327,3468.3,3466.3,2.8849]
[1721662737074,2.88446,3466.9,3466.3,2.8849]
[1721662737369,2.88446,3466.9,3466.2,2.452]
[1721662737370,2.88458,3466.8,3466.2,2.88495]
[1721662737572,2.88462,3466.7,3466.2,2.88495]
[1721662738370,2.88446,3466.9,3466.2,2.88495]
[1721662738575,2.88455,3466.8,3466.2,2.88495]
[1721662738779,2.88455,3466.8,3466.3,0.577007]
[1721662739216,2.8846,3466.7,3466.3,0.577007]
[1721662739988,2.8846,3466.7,3466.4,0.55]
[1721662740293,2.88467,3466.6,3466.4,0.55]
[1721662740482,5.20361,3467.3,3466.2,3.43495]
[1721662740683,2.8845,3466.8,3466.3,0.643495]
[1721662740986,2.88458,3466.7,3466.4,0.55]
[1721662742595,2.88458,3466.7,3466.1,3.0]
[1721662742596,2.88492,3466.3,3466.1,3.0]
[1721662742796,5.76991,3466.3,3466.2,0.55]
[1721662743033,2.88513,3466.1,3465.9,0.55]
[1721662743350,2.88497,3466.3,3465.2,2.3928]
[1721662743494,2.88497,3466.3,3465.5,2.88553]
[1721662743495,2.88508,3466.1,3465.5,2.88553]
[1721662743694,2.88508,3466.1,3465.4,2.88565]
[1721662744044,2.88514,3466.1,3465.4,2.8856]
[1721662744341,2.88502,3466.2,3465.5,5.88558]
[1721662744704,2.3925,3466.5,3465.6,2.88543]
[1721662744949,2.88471,3466.6,3465.9,2.88518]
[1721662745096,2.88471,3466.6,3466.0,0.55]
[1721662745296,2.88471,3466.6,3466.1,2.88507]
[1721662745538,2.88471,3466.6,3466.2,0.55]
[1721662746244,2.88475,3466.5,3466.2,0.55]
[1721662746452,2.88475,3466.5,3466.0,3.43516]
[1721662746738,2.88475,3466.5,3466.0,4.4260663]
[1721662746938,5.76926,3466.7,3466.0,7.3111663]
[1721662747140,2.88467,3466.6,3466.0,4.4260063]
[1721662747531,2.88475,3466.5,3466.0,4.4260063]
[1721662747933,2.88459,3466.7,3466.1,2.88507]
[1721662748146,2.88459,3466.7,3466.2,0.55]
[1721662748455,2.3925,3467.0,3466.2,0.55]
[1721662748666,2.88467,3466.6,3466.1,3.43508]
[1721662748831,2.88467,3466.6,3466.1,4.16620663]
[1721662749529,2.88467,3466.6,3466.1,1.28112663]
[1721662749739,2.88467,3466.6,3466.1,4.16619663]
[1721662750042,5.76912,3466.8,3466.1,1.28112663]
[1721662750279,7.32,3467.4,3466.1,0.55]
[1721662750577,2.88376,3467.7,3467.0,2.88428]
[1721662750718,2.3941,3468.0,3467.1,0.55]
[1721662750919,5.27765,3468.0,3467.4,2.88394]
[1721662751151,5.27765,3468.0,3467.5,0.55]
[1721662751315,5.27765,3468.0,3467.6,2.88378]
[1721662751316,2.3941,3468.0,3467.6,2.88378]
[1721662751759,2.3941,3468.0,3467.0,2.88428]
[1721662751974,2.3941,3468.0,3466.7,2.2702]
[1721662751975,2.88389,3467.6,3467.1,0.55]
[1721662752269,2.88377,3467.7,3467.0,2.88427]
[1721662752427,2.88377,3467.7,3467.2,2.88416]
[1721662752623,2.3941,3468.0,3466.8,0.55]
[1721662752624,2.88412,3467.3,3466.8,0.55]
[1721662752827,2.3941,3468.0,3465.8,2.4598]
[1721662752828,2.293,3467.8,3465.8,2.4598]
[1721662753163,2.88396,3467.5,3466.8,2.88445]
[1721662753372,3.64622,3467.7,3466.8,2.88445]
[1721662753672,5.76779,3467.6,3467.0,2.88433]
[1721662753965,0.76246,3467.7,3467.2,2.88411]
[1721662754165,2.88376,3467.7,3467.1,2.88419]
[1721662754467,2.88376,3467.7,3467.2,2.88416]
[1721662754760,5.1767,3467.8,3467.0,2.88428]
[1721662754975,2.293,3467.8,3467.3,2.88408]
[1721662755138,2.293,3467.8,3467.1,3.43421]
[1721662755339,2.88384,3467.6,3467.1,0.55]
[1721662755537,2.88392,3467.5,3467.0,2.88432]
[1721662755859,2.88376,3467.7,3467.0,2.88429]
[1721662756062,2.88393,3467.5,3467.0,2.88429]
[1721662756375,2.88393,3467.5,3466.8,2.88444]
[1721662756865,5.76829,3467.3,3466.5,2.88469]
[1721662757037,2.88421,3467.2,3466.6,3.0]
[1721662757223,2.88421,3467.2,3466.6,5.88462]
[1721662757454,2.88393,3467.5,3466.6,3.0]
[1721662757661,2.88393,3467.5,3466.4,3.0]
[1721662757962,2.88401,3467.4,3466.8,2.88443]
[1721662758178,2.88401,3467.4,3466.6,2.88465]
[1721662758179,2.8842,3467.2,3466.6,2.88465]
[1721662758558,2.88434,3467.0,3466.5,0.833291]
[1721662758885,2.8842,3467.2,3466.6,2.88465]
[1721662759090,2.293,3467.8,3466.7,2.88452]
[1721662759091,2.8841,3467.3,3466.7,2.88452]
[1721662759455,2.293,3467.8,3466.7,2.88452]
[1721662759456,2.293,3467.8,3467.1,2.88418]
[1721662759661,2.88357,3468.0,3467.4,2.88393]
[1721662759907,7.32,3468.1,3467.6,2.88383]
[1721662760060,2.4453,3468.2,3467.2,0.55]
[1721662760061,2.4453,3468.2,3467.5,2.88391]
[1721662760256,2.88343,3468.1,3467.6,2.88379]
[1721662760455,2.88343,3468.1,3467.4,2.88395]
[1721662760456,2.88356,3468.0,3467.4,2.88395]
[1721662760691,2.88356,3468.0,3467.5,3.4339]
[1721662761101,5.32868,3468.2,3467.6,2.88382]
[1721662761292,5.32868,3468.2,3467.5,0.55]
[1721662761293,2.88348,3468.1,3467.5,0.55]
[1721662761792,2.88348,3468.1,3467.2,2.88414]
[1721662761793,0.532878,3468.1,3467.2,2.88414]
[1721662761999,2.88379,3467.7,3467.2,2.88414]
[1721662762209,2.88379,3467.7,3467.0,2.88427]
[1721662762426,2.88379,3467.7,3467.1,3.55]
[1721662762577,2.88382,3467.7,3467.1,3.55]
[1721662762773,2.88382,3467.7,3467.0,2.88427]
[1721662762774,0.288382,3467.7,3466.6,2.88461]
[1721662763081,0.288382,3467.7,3466.6,2.88466]
[1721662763082,2.88417,3467.2,3466.6,2.88466]
[1721662763276,2.88417,3467.2,3466.6,5.76932]
[1721662763518,2.4099,3467.3,3466.6,2.88466]
[1721662763677,2.88393,3467.5,3466.9,2.88439]
[1721662763878,2.88393,3467.5,3467.0,2.88433]
[1721662764077,2.88405,3467.4,3466.8,2.88445]
[1721662764304,2.88405,3467.4,3466.3,2.88491]
[1721662764611,2.88405,3467.4,3466.9,2.8844]
[1721662764813,2.88405,3467.4,3466.8,2.88449]
[1721662765018,2.88409,3467.3,3466.8,2.88449]
[1721662765178,2.698282,3467.7,3466.8,2.88449]
[1721662765378,2.698282,3467.7,3467.0,2.88429]
[1721662765613,2.88384,3467.6,3467.0,2.88429]
[1721662765817,2.698282,3467.7,3467.0,2.88427]
[1721662766129,2.88384,3467.6,3467.0,2.88427]
[1721662766625,2.88396,3467.5,3467.0,2.88427]
[1721662766774,2.88384,3467.6,3467.0,2.88427]
[1721662766980,2.88392,3467.5,3467.0,2.88427]
[1721662767631,2.884,3467.4,3466.8,2.88445]
[1721662768130,2.88385,3467.6,3467.0,2.88433]
[1721662768416,2.88381,3467.7,3467.1,3.43424]
[1721662768654,2.88384,3467.6,3467.1,0.55]
[1721662768833,2.88384,3467.6,3467.0,2.88425]
[1721662769119,2.88384,3467.6,3467.1,0.55]
[1721662769431,2.88368,3467.8,3467.2,2.88416]
[1721662769601,2.88368,3467.8,3467.3,2.88406]
[1721662769805,5.13465,3468.0,3467.4,2.88399]
[1721662770115,5.936452,3468.0,3467.4,2.88399]
[1721662770495,2.88361,3467.9,3467.4,2.88399]
[1721662770929,3.052902,3468.0,3467.4,5.76793]
[1721662771084,3.052902,3468.0,3467.4,2.88394]
[1721662771421,5.936412,3468.0,3467.4,2.88394]